bitfinex/quotes_SOLUSD_20241127
["timestamp","ask_amount","ask_price","bid_price","bid_amount"]
[1732731488213,7.95547637,240.52,240.44,7.95547637]
[1732731488417,12.45168633,240.53,240.45,12.45168633]
[1732731488597,19.72508633,240.6,240.42,12.45168633]
[1732731488598,12.45168633,240.5,240.42,12.45168633]
[1732731488799,5.1963,240.56,240.41,12.45168633]
[1732731488800,12.45168633,240.48,240.41,12.45168633]
[1732731489399,12.45168633,240.47,240.39,12.45168633]
[1732731491316,2.0793,240.46,240.38,12.45168633]
[1732731491822,14.53098633,240.46,240.38,12.45168633]
[1732731492323,12.45168633,240.43,240.35,12.45168633]
[1732731492699,2.0796,240.42,240.37,12.45168633]
[1732731493314,12.45168633,240.45,240.37,12.45168633]
[1732731493501,2.0795,240.44,240.37,12.45168633]
[1732731493907,2.079,240.49,240.41,12.45168633]
[1732731494107,12.45168633,240.47,240.4,12.45168633]
[1732731494921,2.0793,240.46,240.4,12.45168633]
[1732731495518,12.45168633,240.45,240.36,12.45168633]
[1732731495894,12.45168633,240.41,240.34,12.45168633]
[1732731496424,36.22857033,240.44,240.37,12.45168633]
[1732731496804,14.53128633,240.43,240.36,12.45168633]
[1732731497109,2.0796,240.43,240.36,12.45168633]
[1732731497417,14.53128633,240.43,240.36,12.45168633]
[1732731500000,12.45168633,240.42,240.34,12.45168633]
[1732731500205,12.45168633,240.38,240.31,12.45168633]
[1732731500820,12.45168633,240.39,240.32,12.45168633]
[1732731501024,7.2786,240.43,240.33,12.45168633]
[1732731501025,23.776884,240.4,240.33,12.45168633]
[1732731501327,2.0796,240.43,240.37,12.45168633]
[1732731501523,2.0796,240.43,240.39,12.45168633]
[1732731501730,17.64988633,240.47,240.42,12.45168633]
[1732731501731,2.0792,240.47,240.42,12.45168633]
[1732731501935,5.1972,240.52,240.33,20.0]
[1732731502137,2.079,240.49,240.44,12.45168633]
[1732731502318,2.079,240.49,240.45,12.45168633]
[1732731502647,2.0789,240.51,240.45,12.45168633]
[1732731502934,2.0789,240.51,240.47,12.45168633]
[1732731503745,25.855584,240.53,240.47,12.45168633]
[1732731504119,2.0787,240.53,240.48,12.45168633]
[1732731504321,2.0787,240.53,240.49,12.45168633]
[1732731504540,2.0786,240.55,240.5,12.45168633]
[1732731505819,17.3512,240.56,240.51,12.45168633]
[1732731506128,2.0781,240.61,240.54,12.45168633]
[1732731506321,2.0781,240.61,240.56,12.45168633]
[1732731506729,2.0781,240.61,240.58,12.45168633]
[1732731507114,2.0777,240.65,240.6,12.45168633]
[1732731507342,2.0777,240.65,240.58,12.45168633]
[1732731512623,12.45168633,240.64,240.56,12.45168633]
[1732731513537,2.0777,240.65,240.58,12.45168633]
[1732731513735,2.0777,240.65,240.59,12.45168633]
[1732731514337,14.52938633,240.65,240.58,12.45168633]
[1732731514547,2.0777,240.65,240.59,12.45168633]
[1732731514845,2.0777,240.65,240.58,12.45168633]
[1732731515143,14.52938633,240.65,240.58,12.45168633]
[1732731517151,2.0777,240.65,240.59,12.45168633]
[1732731517447,2.0777,240.65,240.58,12.45168633]
[1732731518033,2.0777,240.65,240.59,12.45168633]
[1732731518641,2.0777,240.65,240.6,12.45168633]
[1732731519034,12.45168633,240.67,240.6,12.45168633]
[1732731519351,2.0776,240.66,240.6,12.45168633]
[1732731519928,2.0776,240.66,240.59,12.45168633]
[1732731520239,12.45168633,240.66,240.58,12.45168633]
[1732731520543,2.0774,240.68,240.59,12.45168633]
[1732731520544,12.45168633,240.67,240.59,12.45168633]
[1732731521143,12.45168633,240.66,240.58,12.45168633]
[1732731522447,2.0777,240.65,240.59,12.45168633]
[1732731523535,12.45168633,240.67,240.59,12.45168633]
[1732731524853,2.0776,240.66,240.59,12.45168633]
[1732731525928,2.0776,240.66,240.62,12.45168633]
[1732731526129,2.0776,240.66,240.61,12.45168633]
[1732731527133,2.0776,240.66,240.57,16.60838633]
[1732731527134,12.45168633,240.65,240.57,16.60838633]
[1732731527329,2.0776,240.66,240.59,12.45168633]
[1732731527529,2.0776,240.66,240.61,12.45168633]
[1732731528144,2.0774,240.68,240.61,12.45168633]
[1732731528948,2.0774,240.68,240.63,12.45168633]
[1732731529148,2.0774,240.68,240.64,12.45168633]
[1732731529529,0.4970053,240.71,240.64,12.45168633]
[1732731529729,2.0773,240.7,240.64,12.45168633]
[1732731530050,2.0773,240.7,240.63,12.45168633]
[1732731531235,12.45168633,240.69,240.59,20.0]
[1732731531432,12.45168633,240.69,240.61,12.45168633]
[1732731532738,12.45168633,240.69,240.58,4.1566]
[1732731532739,2.0774,240.68,240.63,12.45168633]
[1732731533059,14.52898633,240.7,240.63,12.45168633]
[1732731533240,2.0773,240.7,240.63,12.45168633]
[1732731534252,2.0773,240.7,240.65,12.45168633]
[1732731534435,0.4970053,240.71,240.69,12.45168633]
[1732731534638,0.4970053,240.71,240.7,12.45168633]
[1732731535335,0.4970053,240.71,240.68,12.45168633]
[1732731535640,0.4970053,240.71,240.69,12.45168633]
[1732731536337,0.4970053,240.71,240.7,12.45168633]
[1732731537929,0.4970053,240.71,240.7,16.60618633]
[1732731538539,0.4970053,240.71,240.7,40.38307033]
[1732731538748,0.4970053,240.71,240.7,52.83475666]
[1732731538956,0.4970053,240.71,240.7,40.38307033]
[1732731539832,0.4970053,240.71,240.7,16.60618633]
[1732731540134,0.4970053,240.71,240.68,4.1547]
[1732731540336,0.4970053,240.71,240.7,12.45168633]
[1732731541742,0.4970053,240.71,240.7,16.60618633]
[1732731542148,0.4970053,240.71,240.7,27.931384]
[1732731542332,0.4970053,240.71,240.7,12.45168633]
[1732731543849,0.4970053,240.71,240.68,12.45168633]
[1732731544962,0.4970053,240.71,240.7,12.45168633]
[1732731545535,0.4970053,240.71,240.68,12.45168633]
[1732731546249,2.5741053,240.71,240.68,12.45168633]
[1732731546455,2.5741053,240.71,240.64,12.45168633]
[1732731547058,15.02579163,240.71,240.62,12.45168633]
[1732731547258,12.45168633,240.69,240.62,12.45168633]
[1732731547560,12.45168633,240.67,240.58,12.45168633]
[1732731547749,12.45168633,240.69,240.6,12.45168633]
[1732731548947,7.7670053,240.71,240.54,0.8290414]
[1732731548948,15.02579163,240.71,240.63,12.45168633]
[1732731549166,2.5741053,240.71,240.65,12.45168633]
[1732731552152,2.5741053,240.71,240.63,12.45168633]
[1732731553258,2.5741053,240.71,240.65,12.45168633]
[1732731553761,2.5741053,240.71,240.57,14.5486]
[1732731553762,15.02579163,240.71,240.61,12.45168633]
[1732731555055,15.02579163,240.71,240.63,12.45168633]
[1732731555258,15.02579163,240.71,240.65,12.45168633]
[1732731555259,2.5741053,240.71,240.65,12.45168633]
[1732731556245,2.5741053,240.71,240.63,12.45168633]
[1732731556762,15.02579163,240.71,240.63,12.45168633]
[1732731557471,20.21869163,240.71,240.63,12.45168633]
[1732731560166,20.21869163,240.71,240.53,16.8893]
[1732731560167,12.45168633,240.67,240.57,12.45168633]
[1732731560678,12.45168633,240.65,240.57,12.45168633]
[1732731560900,12.45168633,240.65,240.52,15.7175]
[1732731560901,12.45168633,240.65,240.55,12.45168633]
[1732731561077,23.776884,240.7,240.55,12.45168633]
[1732731561078,12.45168633,240.63,240.55,12.45168633]
[1732731561363,16.157,240.62,240.55,12.45168633]
[1732731562150,2.078,240.61,240.55,12.45168633]
[1732731563372,18.235,240.62,240.57,12.45168633]
[1732731563658,2.0778,240.64,240.59,12.45168633]
[1732731564160,12.45168633,240.65,240.55,4.1571]
[1732731564463,12.45168633,240.65,240.57,12.45168633]
[1732731565060,12.45168633,240.65,240.55,16.60878633]
[1732731565459,12.45168633,240.65,240.49,11.22445371]
[1732731565460,12.45168633,240.63,240.51,20.0]
[1732731565762,12.45168633,240.63,240.54,12.45168633]
[1732731566356,2.0779,240.62,240.54,12.45168633]
[1732731568759,2.0779,240.62,240.56,12.45168633]
[1732731569071,2.0776,240.66,240.58,12.45168633]
[1732731569569,2.0776,240.66,240.6,12.45168633]
[1732731569946,2.0775,240.67,240.62,12.45168633]
[1732731570143,2.0775,240.67,240.64,12.45168633]
[1732731570453,16.0163,240.68,240.64,12.45168633]
[1732731570660,18.0937,240.68,240.64,12.45168633]
[1732731572269,2.0772,240.7,240.64,12.45168633]
[1732731572768,0.4970053,240.71,240.69,12.45168633]
[1732731573644,0.4970053,240.71,240.7,0.82862249]
[1732731573844,0.4970053,240.71,240.69,20.0]
[1732731574050,0.4970053,240.71,240.7,12.45168633]
[1732731577173,0.4970053,240.71,240.69,4.1546]
[1732731577355,0.4970053,240.71,240.7,12.45168633]
[1732731580609,0.4970053,240.71,240.7,16.60618633]
[1732731586779,0.4970053,240.71,240.7,41.21163267]
[1732731586960,0.4970053,240.71,240.7,53.663319]
[1732731587370,0.4970053,240.71,240.7,41.21163267]
[1732731588383,0.4970053,240.71,240.7,36.70837414]
[1732731590274,2.0758,240.86,240.74,20.0]
[1732731590488,7.9484278,240.85,240.76,7.9484278]
[1732731591277,2.0758,240.86,240.76,7.9484278]
[1732731591278,10.0240278,240.89,240.82,7.9484278]
[1732731591454,9.5240278,240.89,240.82,7.9484278]
[1732731591658,9.5240278,240.89,240.8,7.9484278]
[1732731594088,7.9484278,240.87,240.75,6.0456]
[1732731594263,7.9484278,240.87,240.78,27.9484278]
[1732731594467,7.9484278,240.87,240.78,7.9484278]
[1732731594669,1.5756,240.89,240.69,6.0682]
[1732731594670,15.6406,240.84,240.69,6.0682]
[1732731594966,15.6406,240.84,240.75,7.9484278]
[1732731595282,15.6406,240.84,240.77,7.9484278]
[1732731595663,2.0761,240.83,240.77,7.9484278]
[1732731599883,15.6406,240.84,240.75,4.1536]
[1732731600093,7.9484278,240.82,240.73,7.9484278]
[1732731600261,22.9067,240.84,240.68,0.82838362]
[1732731600584,7.9484278,240.82,240.74,7.9484278]
[1732731600788,2.0763,240.81,240.74,7.9484278]
[1732731601683,7.9484278,240.8,240.72,7.9484278]
[1732731601984,2.0764,240.79,240.7,7.9484278]
[1732731602479,2.0764,240.79,240.72,7.9484278]
[1732731603676,7.9484278,240.78,240.67,4.155]
[1732731603873,7.9484278,240.78,240.7,7.9484278]
[1732731604185,2.0766,240.77,240.7,7.9484278]
[1732731604387,2.0766,240.77,240.66,20.82865206]
[1732731604561,2.0766,240.77,240.67,24.1549]
[1732731604771,2.0766,240.77,240.68,7.9484278]
[1732731605087,23.776884,240.73,240.58,4.1566]
[1732731605294,7.9484278,240.69,240.61,7.9484278]
[1732731606261,2.0771,240.72,240.61,12.43494156]
[1732731606469,12.43494156,240.71,240.63,12.43494156]
[1732731607059,2.0771,240.72,240.67,12.43494156]
[1732731607471,15.1983,240.83,240.7,20.0]
[1732731607694,12.43494156,240.8,240.72,12.43494156]
[1732731608069,12.43494156,240.8,240.7,12.43494156]
[1732731608673,2.0764,240.79,240.7,16.58934156]
[1732731609272,2.0764,240.79,240.72,12.43494156]
[1732731610093,14.51134156,240.8,240.72,12.43494156]
[1732731610786,14.51134156,240.8,240.72,16.58894156]
[1732731611166,14.51124156,240.82,240.74,12.43494156]
[1732731611593,2.0763,240.82,240.72,16.58894156]
[1732731611774,14.51124156,240.82,240.74,12.43494156]
[1732731612192,12.43494156,240.8,240.72,16.58894156]
[1732731613302,14.51134156,240.8,240.72,16.58894156]
[1732731613676,12.43494156,240.78,240.7,32.43494156]
[1732731614282,12.43494156,240.8,240.72,12.43494156]
[1732731615192,2.0763,240.81,240.74,12.43494156]
[1732731615694,12.43494156,240.8,240.72,12.43494156]
[1732731616595,14.51134156,240.8,240.72,16.58894156]
[1732731618502,14.51134156,240.8,240.7,12.43494156]
[1732731618804,12.43494156,240.71,240.6,12.43494156]
[1732731619003,12.43494156,240.65,240.58,12.43494156]
[1732731619297,12.43494156,240.67,240.58,12.43494156]
[1732731619473,23.776884,240.71,240.64,12.43494156]
[1732731619684,16.0394,240.72,240.64,12.43494156]
[1732731620098,16.0394,240.72,240.66,12.43494156]
[1732731620305,16.0394,240.72,240.68,12.43494156]
[1732731620485,2.0769,240.74,240.68,12.43494156]
[1732731621787,12.43494156,240.73,240.66,12.43494156]
[1732731622005,2.0769,240.74,240.62,12.43494156]
[1732731622006,12.43494156,240.71,240.62,12.43494156]
[1732731622176,12.43494156,240.69,240.62,12.43494156]
[1732731623270,12.43494156,240.67,240.6,12.43494156]
[1732731623478,12.43494156,240.64,240.56,12.43494156]
[1732731624600,14.51264156,240.64,240.56,16.59184156]
[1732731625477,14.51264156,240.64,240.56,12.43494156]
[1732731625887,12.43494156,240.62,240.54,32.43494156]
[1732731626586,14.51264156,240.64,240.54,16.59214156]
[1732731627913,12.43494156,240.64,240.56,12.43494156]
[1732731628083,30.13004156,240.66,240.58,12.43494156]
[1732731628991,28.05244156,240.66,240.58,12.43494156]
[1732731629300,30.13004156,240.66,240.58,12.43494156]
[1732731629498,12.43494156,240.64,240.56,12.43494156]
[1732731630104,2.0778,240.63,240.56,12.43494156]
[1732731630393,2.0777,240.65,240.58,12.43494156]
[1732731630810,28.05244156,240.66,240.58,12.43494156]
[1732731631007,30.13004156,240.66,240.58,12.43494156]
[1732731632391,12.43494156,240.62,240.54,36.59214156]
[1732731632794,12.43494156,240.64,240.56,12.43494156]
[1732731633404,30.13004156,240.66,240.58,12.43494156]
[1732731633610,23.776884,240.65,240.58,12.43494156]
[1732731633785,23.776884,240.65,240.54,20.0]
[1732731633786,17.6951,240.66,240.6,12.43494156]
[1732731635698,17.6951,240.66,240.58,12.43494156]
[1732731636404,15.6175,240.66,240.62,12.43494156]
[1732731636608,2.0771,240.71,240.64,12.43494156]
[1732731638308,2.0771,240.71,240.55,27.65517126]
[1732731638309,2.0771,240.71,240.66,12.43494156]
[1732731638690,17.3046,240.72,240.66,12.43494156]
[1732731638991,2.0769,240.75,240.68,12.43494156]
[1732731640911,2.0769,240.75,240.7,12.43494156]
[1732731641113,2.0766,240.77,240.72,12.43494156]
[1732731641912,2.0766,240.77,240.7,12.43494156]
[1732731642707,12.43494156,240.76,240.68,12.43494156]
[1732731643411,12.43494156,240.74,240.66,12.43494156]
[1732731643800,12.43494156,240.76,240.68,12.43494156]
[1732731644092,7.2682,240.77,240.68,12.43494156]
[1732731644298,2.0766,240.77,240.7,12.43494156]
[1732731644701,14.51154156,240.77,240.7,12.43494156]
[1732731644918,14.51154156,240.77,240.62,4.1559]
[1732731644919,14.51154156,240.77,240.68,12.43494156]
[1732731651802,12.43494156,240.75,240.68,12.43494156]
[1732731652313,14.51184156,240.75,240.68,12.43494156]
[1732731652893,14.51184156,240.75,240.66,16.59014156]
[1732731653121,12.43494156,240.73,240.64,12.43494156]
[1732731654198,2.0771,240.72,240.64,12.43494156]
[1732731654927,12.43494156,240.71,240.63,4.1556]
[1732731655103,12.43494156,240.69,240.62,12.43494156]
[1732731655520,12.43494156,240.69,240.61,4.156]
[1732731655900,12.43494156,240.63,240.55,28.86834156]
[1732731656415,12.43494156,240.62,240.55,28.86834156]
[1732731656609,12.43494156,240.63,240.55,28.86834156]
[1732731656918,12.43494156,240.63,240.55,33.02534156]
[1732731657299,14.51274156,240.63,240.55,33.02534156]
[1732731657495,14.51274156,240.63,240.55,16.59194156]
[1732731657694,14.51274156,240.63,240.55,12.43494156]
[1732731658622,12.43494156,240.57,240.49,12.52849505]
[1732731659121,2.0784,240.56,240.49,0.09355349]
[1732731659328,12.43494156,240.53,240.49,0.09355349]
[1732731660029,12.43494156,240.51,240.49,0.09355349]
[1732731660404,12.43494156,240.53,240.49,0.09355349]
[1732731661226,12.43494156,240.55,240.49,0.09355349]
[1732731662914,12.43494156,240.53,240.49,0.09355349]
[1732731663432,14.51374156,240.53,240.49,0.09355349]
[1732731663616,12.43494156,240.51,240.49,0.09355349]
[1732731664020,14.51374156,240.53,240.49,0.09355349]
[1732731664217,14.51374156,240.53,240.46,12.43494156]
[1732731664410,2.0788,240.53,240.46,12.43494156]
[1732731664625,15.4748,240.58,240.46,12.43494156]
[1732731664626,12.43494156,240.57,240.5,12.43494156]
[1732731665234,12.43494156,240.55,240.48,12.43494156]
[1732731666232,12.43494156,240.57,240.48,12.43494156]
[1732731666533,12.43494156,240.57,240.5,12.43494156]
[1732731667127,17.5531,240.58,240.5,12.43494156]
[1732731667128,15.4748,240.58,240.5,12.43494156]
[1732731667426,14.51314156,240.59,240.52,12.43494156]
[1732731667809,12.43494156,240.57,240.5,12.43494156]
[1732731668410,14.51334156,240.57,240.5,12.43494156]
[1732731668632,12.43494156,240.59,240.51,12.43494156]
[1732731669012,23.776884,240.6,240.53,12.43494156]
[1732731669331,12.43494156,240.61,240.53,12.43494156]
[1732731669540,2.0778,240.63,240.58,12.43494156]
[1732731669829,27.54024156,240.7,240.62,12.43494156]
[1732731670019,29.61754156,240.7,240.62,12.43494156]
[1732731670423,14.51224156,240.7,240.62,12.43494156]
[1732731673633,14.51224156,240.7,240.6,16.59114156]
[1732731674411,14.51224156,240.7,240.63,12.43494156]
[1732731675529,2.0773,240.7,240.63,12.43494156]
[1732731676120,12.43494156,240.69,240.61,12.43494156]
[1732731679114,2.0772,240.7,240.63,12.43494156]
[1732731683633,14.51184156,240.74,240.65,12.43494156]
[1732731683821,12.43494156,240.72,240.65,12.43494156]
[1732731684520,12.43494156,240.7,240.61,12.43494156]
[1732731684923,7.2692,240.74,240.61,12.43494156]
[1732731684924,23.776884,240.73,240.61,12.43494156]
[1732731685242,2.0773,240.69,240.61,12.43494156]
[1732731685618,2.0773,240.69,240.65,12.43494156]
[1732731685818,2.0772,240.71,240.65,12.43494156]
[1732731690119,2.0772,240.71,240.65,7.95588678]
[1732731690317,10.03308678,240.71,240.63,7.95588678]
[1732731691945,2.0772,240.71,240.63,12.11158678]
[1732731694127,2.0772,240.71,240.62,20.0]
[1732731694449,2.0772,240.71,240.63,7.95588678]
[1732731694640,7.95588678,240.7,240.63,7.95588678]
[1732731694831,7.95588678,240.64,240.55,4.1571]
[1732731695145,7.95588678,240.62,240.55,7.95588678]
[1732731696234,12.44200226,240.62,240.54,12.44200226]
[1732731697527,14.51990226,240.62,240.54,16.59910226]
[1732731697856,14.51990226,240.62,240.54,12.44200226]
[1732731699935,12.44200226,240.62,240.54,12.44200226]
[1732731700135,14.52000226,240.62,240.54,16.59910226]
[1732731700640,2.0777,240.65,240.58,12.44200226]
[1732731701852,2.0777,240.65,240.58,16.59850226]
[1732731703147,2.0777,240.65,240.58,12.44200226]
[1732731704442,2.0777,240.65,240.6,12.44200226]
[1732731704642,16.1077,240.66,240.6,12.44200226]
[1732731704856,2.0775,240.67,240.6,12.44200226]
[1732731705158,25.854284,240.68,240.6,12.44200226]
[1732731705455,2.0774,240.68,240.62,12.44200226]
[1732731705967,2.0774,240.68,240.6,12.44200226]
[1732731708649,36.21888626,240.67,240.57,12.44200226]
[1732731708846,12.44200226,240.63,240.55,12.44200226]
[1732731709068,23.776884,240.62,240.53,12.44200226]
[1732731710070,23.776884,240.6,240.53,12.44200226]
[1732731710241,2.078,240.61,240.55,12.44200226]
[1732731710436,23.776884,240.64,240.55,12.44200226]
[1732731710640,2.0777,240.66,240.62,12.44200226]
[1732731711859,2.0775,240.67,240.62,12.44200226]
[1732731712269,2.0775,240.67,240.6,12.44200226]
[1732731713664,14.51950226,240.67,240.6,12.44200226]
[1732731714361,2.0775,240.67,240.6,12.44200226]
[1732731716442,2.0775,240.67,240.6,12.33973449]
[1732731717355,2.0772,240.7,240.62,12.44200226]
[1732731717743,23.776884,240.69,240.62,12.44200226]
[1732731718057,36.21888626,240.69,240.62,12.44200226]
[1732731718441,36.21888626,240.69,240.6,12.44200226]
[1732731718654,2.0774,240.68,240.62,12.44200226]
[1732731721565,28.40140226,240.71,240.64,12.44200226]
[1732731721566,2.0772,240.7,240.64,12.44200226]
[1732731721764,15.9594,240.71,240.66,12.44200226]
[1732731722061,18.0365,240.71,240.66,12.44200226]
[1732731722651,18.0365,240.71,240.64,12.44200226]
[1732731723639,18.0365,240.71,240.66,12.44200226]
[1732731724163,18.0365,240.71,240.65,7.95607905]
[1732731724869,7.95607905,240.69,240.6,20.0]
[1732731725206,7.95607905,240.69,240.49,14.93563078]
[1732731725207,7.95607905,240.65,240.55,7.95607905]
[1732731725369,23.776884,240.62,240.55,7.95607905]
[1732731725972,23.776884,240.63,240.55,7.95607905]
[1732731726141,2.0779,240.62,240.55,7.95607905]
[1732731727162,2.0779,240.62,240.57,7.95607905]
[1732731727862,10.03397905,240.62,240.55,7.95607905]
[1732731728366,12.4426715,240.59,240.52,12.4426715]
[1732731728560,23.776884,240.58,240.52,12.4426715]
[1732731728769,23.776884,240.6,240.54,12.4426715]
[1732731728972,28.7605715,240.61,240.56,12.4426715]
[1732731728973,16.3179,240.61,240.56,12.4426715]
[1732731729266,23.776884,240.6,240.53,12.4426715]
[1732731729468,16.3179,240.61,240.55,12.4426715]
[1732731730253,2.0781,240.6,240.53,12.4426715]
[1732731730771,2.0781,240.6,240.55,12.4426715]
[1732731731275,2.0781,240.6,240.53,12.4426715]
[1732731731468,2.0781,240.6,240.55,12.4426715]
[1732731731975,18.3959,240.61,240.55,12.4426715]
[1732731732968,18.3959,240.61,240.51,4.1577]
[1732731733158,18.3959,240.61,240.57,12.4426715]
[1732731733353,18.3959,240.61,240.55,12.4426715]
[1732731733751,18.3959,240.61,240.53,12.4426715]
[1732731733752,23.776884,240.6,240.53,12.4426715]
[1732731733958,12.4426715,240.58,240.51,12.4426715]
[1732731734955,2.0783,240.57,240.51,12.4426715]
[1732731737362,36.2195555,240.56,240.49,0.09355349]
[1732731737685,2.0783,240.57,240.49,0.09355349]
[1732731737686,23.776884,240.53,240.49,0.09355349]
[1732731737886,23.776884,240.55,240.49,0.09355349]
[1732731738473,2.0783,240.57,240.49,12.53622499]
[1732731738672,23.776884,240.56,240.49,12.53622499]
[1732731738969,2.0783,240.57,240.51,12.4426715]
[1732731739171,2.0783,240.58,240.54,12.4426715]
[1732731739377,25.854984,240.6,240.54,12.4426715]
[1732731740707,2.0781,240.6,240.57,12.4426715]
[1732731741394,2.0781,240.6,240.55,12.4426715]
[1732731741577,18.396,240.61,240.55,12.4426715]
[1732731741884,18.396,240.61,240.57,12.4426715]
[1732731742389,18.396,240.61,240.55,12.4426715]
[1732731742802,30.8386715,240.61,240.53,12.4426715]
[1732731743392,2.0782,240.59,240.53,12.4426715]
[1732731744772,23.776884,240.58,240.51,12.4426715]
[1732731745175,2.0782,240.59,240.55,12.4426715]
[1732731745381,2.0781,240.6,240.55,12.4426715]
[1732731745580,16.3179,240.61,240.55,12.4426715]
[1732731745803,18.3959,240.61,240.55,12.4426715]
[1732731747885,23.776884,240.6,240.53,12.4426715]
[1732731748092,12.4426715,240.59,240.51,12.4426715]
[1732731748300,23.776884,240.58,240.52,7.96469655]
[1732731748500,23.776884,240.58,240.46,20.82942698]
[1732731748785,23.776884,240.59,240.53,7.96469655]
[1732731748988,23.776884,240.57,240.49,7.96469655]
[1732731749489,2.0784,240.56,240.49,7.96469655]
[1732731749673,2.0784,240.56,240.48,20.0]
[1732731749874,2.0784,240.56,240.5,7.96469655]
[1732731750082,10.04309655,240.56,240.48,7.96469655]
[1732731750277,2.0784,240.56,240.5,7.96469655]
[1732731751183,2.0783,240.57,240.5,7.96469655]
[1732731751382,7.2742,240.57,240.48,7.96469655]
[1732731751594,31.74158055,240.56,240.48,7.96469655]
[1732731752171,31.74158055,240.56,240.36,16.67907338]
[1732731752172,23.776884,240.53,240.36,16.67907338]
[1732731752388,7.96469655,240.5,240.42,7.96469655]
[1732731752875,7.96469655,240.49,240.42,7.96469655]
[1732731753286,10.04379655,240.48,240.37,4.1602]
[1732731753485,7.96469655,240.47,240.4,7.96469655]
[1732731754404,2.0793,240.46,240.41,12.45765486]
[1732731755108,5.1973,240.51,240.38,4.16]
[1732731755109,12.45765486,240.51,240.44,12.45765486]
[1732731755273,15.3829,240.53,240.39,12.45765486]
[1732731755274,12.45765486,240.47,240.39,12.45765486]
[1732731755478,14.53665486,240.5,240.42,12.45765486]
[1732731755783,12.45765486,240.49,240.42,12.45765486]
[1732731755981,14.53665486,240.5,240.42,12.45765486]
[1732731756389,2.0792,240.47,240.4,12.45765486]
[1732731757199,12.45765486,240.44,240.36,12.45765486]
[1732731757395,12.45765486,240.46,240.38,12.45765486]
[1732731757794,23.776884,240.46,240.4,12.45765486]
[1732731758477,31.054184,240.47,240.4,12.45765486]
[1732731759302,31.054184,240.47,240.38,12.45765486]
[1732731759303,12.45765486,240.46,240.38,12.45765486]
[1732731759486,12.45765486,240.42,240.34,12.45765486]
[1732731759691,12.45765486,240.42,240.36,12.45765486]
[1732731760178,16.1687,240.44,240.35,12.45765486]
[1732731760179,12.45765486,240.43,240.35,12.45765486]
[1732731760387,2.0796,240.42,240.35,12.45765486]
[1732731760583,2.0796,240.42,240.33,4.1608]
[1732731760584,2.0796,240.42,240.36,12.45765486]
[1732731760903,28.62635486,240.44,240.37,12.45765486]
[1732731761098,18.2483,240.44,240.38,12.45765486]
[1732731761590,18.2483,240.44,240.37,12.45765486]
[1732731761905,30.70595486,240.44,240.36,12.45765486]
[1732731762903,12.45765486,240.42,240.34,12.45765486]
[1732731763587,23.776884,240.41,240.34,12.45765486]
[1732731763788,12.45765486,240.4,240.32,12.45765486]
[1732731764105,30.70595486,240.44,240.36,12.45765486]
[1732731764806,18.2483,240.44,240.4,12.45765486]
[1732731765384,18.2483,240.44,240.38,12.45765486]
[1732731765807,18.2483,240.44,240.4,12.45765486]
[1732731766190,18.2483,240.44,240.31,0.82986088]
[1732731766191,18.2483,240.44,240.38,12.45765486]
[1732731768108,18.2483,240.44,240.31,0.82986088]
[1732731768109,2.0792,240.47,240.4,12.45765486]
[1732731768299,20.0,240.45,240.4,12.45765486]
[1732731769089,22.0792,240.47,240.4,12.45765486]
[1732731769279,2.079,240.49,240.42,12.45765486]
[1732731771400,2.079,240.49,240.4,12.45765486]
[1732731771712,2.079,240.49,240.42,12.45765486]
[1732731772206,12.45765486,240.48,240.39,12.45765486]
[1732731772607,12.45765486,240.44,240.31,4.1611]
[1732731772906,36.23453886,240.42,240.33,12.45765486]
[1732731773312,36.23453886,240.42,240.35,12.45765486]
[1732731773700,2.0797,240.41,240.35,12.45765486]
[1732731773905,2.0797,240.41,240.37,12.45765486]
[1732731774091,2.0797,240.41,240.36,12.45765486]
[1732731775601,2.0796,240.42,240.36,12.45765486]
[1732731777406,14.53725486,240.42,240.34,12.45765486]
[1732731778102,2.0796,240.42,240.36,12.45765486]
[1732731778314,2.0796,240.42,240.36,7.97569307]
[1732731779296,2.0796,240.42,240.33,4.1608]
[1732731779618,2.0796,240.42,240.32,4.1611]
[1732731779797,2.0796,240.42,240.35,7.97569307]
[1732731780504,2.0796,240.42,240.37,7.97569307]
[1732731783248,2.0796,240.42,240.35,7.97569307]
[1732731783890,2.0796,240.42,240.24,42.30877228]
[1732731783891,7.97569307,240.38,240.24,42.30877228]
[1732731784088,7.97569307,240.38,240.3,7.97569307]
[1732731785517,2.0801,240.37,240.3,7.97569307]
[1732731785890,2.0801,240.37,240.27,4.1618]
[1732731786190,2.0801,240.37,240.3,7.97569307]
[1732731786390,2.0801,240.37,240.27,24.1618]
[1732731786706,23.776884,240.38,240.32,7.97569307]
[1732731787014,23.776884,240.38,240.3,7.97569307]